bitfinex/quotes_ETHUSD_20250504
["timestamp","ask_amount","ask_price","bid_price","bid_amount"]
[1746317313994,16.42462373,1839.4,1839.1,0.28342801]
[1746317314497,3.8,1839.3,1839.1,0.28342801]
[1746317315430,3.8,1839.3,1839.1,5.72065906]
[1746317315995,8.1566475,1839.4,1839.1,5.72065906]
[1746317317108,8.1566475,1839.4,1839.1,0.28342801]
[1746317317308,8.1566475,1839.4,1839.1,5.72072358]
[1746317318051,3.6366475,1839.3,1839.1,5.72072358]
[1746317318346,3.6366475,1839.3,1839.1,0.28342801]
[1746317319735,4.521,1839.2,1839.1,0.28342801]
[1746317319948,4.521,1839.2,1839.1,5.72087023]
[1746317320533,4.521,1839.2,1839.1,0.28342801]
[1746317324207,4.99657,1839.2,1839.0,5.43772589]
[1746317324406,4.521,1839.2,1839.1,0.2590558]
[1746317330145,4.521,1839.2,1839.1,5.69649802]
[1746317333851,4.521,1839.2,1839.1,0.2590558]
[1746317334241,4.521,1839.2,1839.1,5.69649802]
[1746317340278,4.521,1839.2,1839.1,0.2590558]
[1746317340782,4.521,1839.2,1839.1,5.69649802]
[1746317343559,4.521,1839.2,1839.1,0.2590558]
[1746317344383,4.521,1839.2,1839.1,5.69649802]
[1746317345783,4.521,1839.2,1839.1,0.2590558]
[1746317345985,4.521,1839.2,1839.1,5.69649802]
[1746317346584,4.521,1839.2,1839.1,0.2590558]
[1746317347189,4.521,1839.2,1839.1,5.69649802]
[1746317347889,4.521,1839.2,1839.1,0.2590558]
[1746317348289,4.521,1839.2,1839.1,5.69649802]
[1746317349589,4.521,1839.2,1839.1,0.2590558]
[1746317357271,4.521,1839.2,1839.1,5.69649802]
[1746317361912,4.521,1839.2,1839.1,0.2590558]
[1746317362209,5.33676475,1839.2,1838.8,6.20487612]
[1746317362374,5.33676475,1839.2,1838.9,5.43792671]
[1746317362576,5.33676475,1839.2,1838.9,5.68801057]
[1746317364718,4.521,1839.2,1839.0,5.4376199]
[1746317364874,4.521,1839.2,1839.1,5.68708792]
[1746317365074,8.321,1839.2,1839.1,5.68708792]
[1746317366806,4.521,1839.2,1839.1,5.68708792]
[1746317367184,4.521,1839.2,1839.1,0.2496457]
[1746317367185,8.1576475,1839.2,1839.1,0.2496457]
[1746317370113,8.1576475,1839.2,1839.1,5.68708792]
[1746317371311,4.521,1839.2,1839.1,5.68708792]
[1746317375354,19.604,1839.6,1839.2,9.19894658]
[1746317375547,4.516,1839.5,1839.4,9.19835539]
[1746317375742,8.316,1839.5,1839.4,9.44641675]
[1746317375899,4.516,1839.5,1839.4,9.44641675]
[1746317377640,19.604,1839.6,1839.5,9.20345985]
[1746317378026,19.6956073,1839.6,1839.5,9.45130224]
[1746317380757,0.3416073,1839.6,1839.5,9.45130224]
[1746317381333,4.516,1839.7,1839.6,9.20316434]
[1746317381529,4.516,1839.7,1839.6,10.93854105]
[1746317382056,4.516,1839.7,1839.6,11.3544182]
[1746317383463,1.0326259,1840.2,1840.0,5.43476514]
[1746317383763,4.515,1840.1,1840.0,5.43476514]
[1746317383931,4.515,1840.1,1839.9,5.43492628]
[1746317384335,4.515,1840.1,1839.9,5.43486328]
[1746317387077,4.515,1840.1,1839.9,10.86970943]
[1746317387262,4.515,1840.1,1839.9,5.43484615]
[1746317387887,4.515,1840.1,1839.8,5.43523879]
[1746317388078,4.515,1840.1,1839.8,10.87039246]
[1746317388379,4.515,1840.1,1839.8,5.43515367]
[1746317388673,4.515,1840.1,1839.9,5.43496673]
[1746317388838,4.515,1840.1,1839.9,6.25956673]
[1746317389176,4.515,1840.1,1840.0,5.4347826]
[1746317389577,4.515,1840.1,1840.0,5.67545912]
[1746317394183,4.515,1840.1,1840.0,0.24067652]
[1746317394488,4.515,1840.1,1840.0,5.67545912]
[1746317395509,4.515,1840.1,1840.0,0.24067652]
[1746317395786,4.7497,1840.1,1840.0,0.24067652]
[1746317395958,4.7497,1840.1,1839.8,8.43522065]
[1746317396157,4.7497,1840.1,1839.9,5.67587046]
[1746317396582,4.7497,1840.1,1839.9,0.24089537]
[1746317396958,4.7497,1840.1,1839.9,5.67595536]
[1746317397191,4.7497,1840.1,1839.9,0.24089537]
[1746317397496,4.7497,1840.1,1839.9,5.67575559]
[1746317399092,4.515,1840.1,1839.9,5.67575559]
[1746317401192,4.515,1840.1,1840.0,5.4347826]
[1746317401395,4.515,1840.1,1840.0,5.67518112]
[1746317402092,4.515,1840.1,1840.0,0.24039852]
[1746317403090,4.515,1840.1,1840.0,5.4347826]
[1746317403303,4.515,1840.1,1840.0,5.67504214]
[1746317403515,4.515,1840.1,1840.0,8.67504214]
[1746317403694,1.0326259,1840.2,1840.1,8.43448725]
[1746317403878,5.5446259,1840.2,1840.1,8.43448725]
[1746317404063,5.5446259,1840.2,1840.1,8.67452796]
[1746317406499,1.0326259,1840.2,1840.1,9.42662796]
[1746317406698,1.0326259,1840.2,1840.1,10.91276902]
[1746317407296,1.0326259,1840.2,1840.1,11.32899797]
[1746317408106,1.0326259,1840.2,1840.1,5.89451072]
[1746317408307,1.0326259,1840.2,1840.1,9.84285691]
[1746317408470,1.0326259,1840.2,1840.1,9.09075691]
[1746317409174,1.0326259,1840.2,1840.1,9.84285691]
[1746317409692,1.0326259,1840.2,1840.1,3.65626966]
[1746317410889,1.0326259,1840.2,1840.1,9.09075691]
[1746317411997,1.0326259,1840.2,1840.1,0.24004071]
[1746317412199,1.92505108,1840.2,1840.0,3.0]
[1746317412404,1.2673259,1840.2,1840.1,0.23740054]
[1746317414597,1.0326259,1840.2,1840.1,6.88153129]
[1746317414800,1.0326259,1840.2,1840.1,6.47678779]
[1746317419114,1.0326259,1840.2,1840.1,9.89420507]
[1746317419414,1.0326259,1840.2,1840.1,11.42709948]
[1746317420316,1.0326259,1840.2,1840.1,9.89420507]
[1746317420815,1.0326259,1840.2,1840.1,3.65481782]
[1746317421005,1.0326259,1840.2,1840.1,9.08930507]
[1746317423819,1.0326259,1840.2,1840.1,3.65481782]
[1746317424312,1.0326259,1840.2,1840.1,9.08930507]
[1746317425421,1.0326259,1840.2,1840.1,3.65481782]
[1746317425719,1.0326259,1840.2,1840.1,9.08930507]
[1746317429421,1.0326259,1840.2,1840.1,11.31541191]
[1746317430010,5.5416259,1840.2,1840.1,11.31541191]
[1746317431710,5.5416259,1840.2,1840.1,11.45358036]
[1746317440646,1.0326259,1840.2,1840.1,11.45358036]
[1746317445318,0.2347,1840.7,1840.1,11.45358036]
[1746317445319,0.2347,1840.7,1840.3,0.7547]
[1746317445621,4.509,1840.8,1840.7,5.43271581]
[1746317445836,8.309,1840.8,1840.7,5.80044875]
[1746317446552,4.509,1840.8,1840.7,5.80044875]
[1746317448575,0.2347,1840.9,1840.8,5.43242068]
[1746317448783,4.508,1840.9,1840.8,5.43242068]
[1746317448988,4.508,1840.9,1840.8,5.79992711]
[1746317456486,4.508,1840.9,1840.8,0.36750643]
[1746317456666,4.508,1840.9,1840.8,5.79992711]
[1746317458501,4.508,1840.9,1840.8,6.56233223]
[1746317461063,4.508,1840.9,1840.8,0.36750643]
[1746317462084,4.508,1840.9,1840.8,5.79992711]
[1746317463795,4.508,1840.9,1840.8,0.36750643]
[1746317468190,4.508,1840.9,1840.8,5.79992711]
[1746317477115,4.508,1840.9,1840.8,8.79992711]
[1746317477280,4.508,1840.9,1840.8,10.33895819]
[1746317477484,0.2347,1841.3,1841.1,5.43153549]
[1746317477694,8.307,1841.2,1841.1,5.43153549]
[1746317478207,4.507,1841.2,1841.1,5.43153549]
[1746317479719,4.507,1841.2,1841.1,5.79628213]
[1746317480973,4.507,1841.2,1841.1,9.91909306]
[1746317484948,4.507,1841.2,1841.1,10.71399306]
[1746317489427,21.06741175,1841.4,1841.3,5.43094552]
[1746317489646,25.57241175,1841.4,1841.3,5.79177246]
[1746317489833,25.57241175,1841.4,1841.3,6.91406914]
[1746317490340,24.53978585,1841.4,1841.3,6.91406914]
[1746317492756,24.53978585,1841.4,1841.3,7.3191548]
[1746317496325,24.53978585,1841.4,1841.3,6.19685812]
[1746317496966,24.53978585,1841.4,1841.3,0.7659126]
[1746317498958,24.53978585,1841.4,1841.3,6.19685812]
[1746317502164,4.95278585,1841.4,1841.3,6.19685812]
[1746317502535,4.95278585,1841.4,1841.3,9.19685812]
[1746317502838,4.95278585,1841.4,1841.3,10.95966676]
[1746317505461,4.95278585,1841.4,1841.3,9.19685812]
[1746317505662,4.95278585,1841.4,1841.3,3.7659126]
[1746317505663,5.18748585,1841.4,1841.3,3.7659126]
[1746317505875,4.95278585,1841.4,1841.3,9.19685812]
[1746317517076,4.95278585,1841.4,1841.3,10.01275812]
[1746317519346,4.95278585,1841.4,1841.3,10.06706243]
[1746317519662,4.95278585,1841.4,1841.3,11.56256928]
[1746317520056,4.95278585,1841.4,1841.3,6.13162376]
[1746317520257,4.95278585,1841.4,1841.3,9.19685812]
[1746317521060,13.61813644,1841.4,1841.3,0.36082694]
[1746317521386,0.55,1841.3,1840.9,6.24786956]
[1746317521581,0.55,1841.3,1841.0,5.43179218]
[1746317521760,13.61813644,1841.4,1841.0,5.73003313]
[1746317521968,15.5780043,1841.4,1841.0,5.73003313]
[1746317522155,15.5780043,1841.4,1841.0,0.29824095]
[1746317522359,5.43094937,1841.3,1841.0,0.29824095]
[1746317522793,15.57817433,1841.4,1841.0,0.29824095]
[1746317523155,0.55,1841.3,1841.0,0.29824095]
[1746317523359,6.21623549,1841.1,1841.0,0.29824095]
[1746317523580,0.7847,1841.1,1840.6,4.07346329]
[1746317523888,0.2347,1840.8,1840.7,0.23268238]
[1746317527690,0.2347,1840.9,1840.7,0.23268238]
[1746317533191,0.2347,1840.9,1840.7,5.66535862]
[1746317533505,0.2347,1840.9,1840.7,0.23268238]
[1746317534558,0.2347,1840.9,1840.7,5.66532912]
[1746317535689,4.503,1841.0,1840.9,8.43212559]
[1746317535892,4.503,1841.0,1840.9,9.47475498]
[1746317543498,19.584,1841.2,1841.1,5.43153549]
[1746317544006,19.584,1841.2,1841.1,5.66555634]
[1746317544375,19.584,1841.2,1841.1,9.43665634]
[1746317544578,19.584,1841.2,1841.1,10.92349403]
[1746317544774,0.44778585,1841.4,1841.3,5.43094552]
[1746317545211,0.44778585,1841.4,1841.3,5.661003]
[1746317547114,0.44778585,1841.4,1841.3,5.71530679]
[1746317547822,0.44778585,1841.4,1841.3,9.49570679]
[1746317547985,0.44778585,1841.4,1841.3,10.98840152]
[1746317548181,5.42933043,1841.9,1841.4,6.21083821]
[1746317548486,5.42933043,1841.9,1841.3,4.72275221]
[1746317548487,0.6824,1842.3,1841.7,0.7804]
[1746317548690,5.42853493,1842.2,1841.8,3.22471336]
[1746317548911,0.54285349,1842.1,1841.8,0.22471336]
[1746317549293,4.502,1842.0,1841.8,0.22471336]
[1746317549489,4.502,1842.0,1841.9,3.0]
[1746317549811,4.502,1842.0,1841.9,3.22448712]
[1746317550113,4.502,1842.0,1841.9,0.22448712]
[1746317550327,5.68888535,1842.0,1841.6,8.42982653]
[1746317550523,5.68888535,1842.0,1841.7,0.22320061]
[1746317550524,11.11779221,1842.0,1841.7,0.22320061]
[1746317550812,11.11779221,1842.0,1841.5,9.25311577]
[1746317551022,11.11779221,1842.0,1841.8,0.22297434]
[1746317551223,11.11779221,1842.0,1841.5,9.25311577]
[1746317551380,11.11779221,1842.0,1841.9,0.22274811]
[1746317551582,11.11779221,1842.0,1841.5,9.25311577]
[1746317551783,11.11779221,1842.0,1841.9,0.22274811]
[1746317551991,11.11779221,1842.0,1841.5,9.65666661]
[1746317552191,11.11779221,1842.0,1841.9,0.22274811]
[1746317552406,11.11779221,1842.0,1841.5,5.8337398]
[1746317552608,11.11779221,1842.0,1841.9,0.22274811]
[1746317552800,11.11779221,1842.0,1841.5,0.40355084]
[1746317553141,10.61330686,1842.0,1841.7,3.0]
[1746317553326,10.61330686,1842.0,1841.6,0.22342689]
[1746317553831,5.42923647,1841.9,1841.6,0.22342689]
[1746317554198,5.42952928,1841.8,1841.6,0.22342689]
[1746317554397,5.97248221,1841.8,1841.4,3.0]
[1746317554638,6.11192928,1841.8,1841.7,0.22320061]
[1746317554842,6.11192928,1841.8,1841.4,3.0]
[1746317554996,5.42977859,1841.7,1841.4,3.0]
[1746317555197,4.501,1841.6,1841.4,3.0]
[1746317556893,4.501,1841.6,1841.4,3.41374387]
[1746317558033,4.501,1841.6,1841.4,4.2981923]
[1746317559335,4.501,1841.6,1841.4,0.88444843]
[1746317559556,9.93120123,1841.6,1841.2,0.7983]
[1746317560556,9.93120123,1841.6,1841.2,6.22953926]
[1746317560872,9.93120123,1841.6,1841.2,0.7983]
[1746317561323,9.93120123,1841.6,1841.2,4.2124377]
[1746317561734,9.93120123,1841.6,1841.3,3.0]
[1746317562562,4.501,1841.6,1841.3,3.0]
[1746317563124,4.501,1841.6,1841.4,6.23284172]
[1746317564461,4.501,1841.6,1841.4,3.8023]
[1746317564633,4.501,1841.6,1841.4,3.0]
[1746317568841,4.54148152,1841.6,1841.4,3.0]
[1746317569555,4.54148152,1841.6,1841.5,0.22374455]
[1746317570079,9.97154233,1841.6,1841.5,0.22374455]
[1746317570379,9.97154233,1841.6,1841.5,0.22388189]
[1746317570585,9.97154233,1841.6,1841.3,0.8023]
[1746317570739,9.97154233,1841.6,1841.5,0.22388189]
[1746317571061,4.54148152,1841.6,1841.3,0.8023]
[1746317571264,4.54148152,1841.6,1841.5,0.22388189]
[1746317571468,4.54148152,1841.6,1841.4,0.22410822]
[1746317571660,4.54148152,1841.6,1841.5,0.22388189]
[1746317572066,4.54148152,1841.6,1841.3,0.8023]
[1746317572267,9.97154233,1841.6,1841.5,0.22388189]
[1746317572469,9.97154233,1841.6,1841.4,0.22410822]
[1746317572780,9.97154233,1841.6,1841.5,0.22388189]
[1746317573073,9.97154233,1841.6,1841.3,0.8023]
[1746317573276,9.97154233,1841.6,1841.5,0.22388189]
[1746317573886,9.9717651,1841.6,1841.2,0.4141377]
[1746317574181,9.9717651,1841.6,1841.2,3.0]
[1746317574367,9.9717651,1841.6,1841.3,0.20640444]
[1746317580885,4.54148152,1841.6,1841.3,0.20640444]
[1746317581099,4.54148152,1841.6,1841.3,10.0445117]
[1746317581658,4.54148152,1841.6,1841.3,1.61369343]
[1746317582689,9.97176331,1841.6,1841.3,1.61369343]
[1746317582886,9.97176331,1841.6,1841.3,1.00960444]
[1746317583286,4.54148152,1841.6,1841.4,3.0]
[1746317583591,4.54148152,1841.6,1841.5,0.20595175]
[1746317583887,4.54148152,1841.6,1841.3,0.8032]
[1746317584197,4.54148152,1841.6,1841.4,0.20617808]
[1746317584390,4.54148152,1841.6,1841.2,8.83450033]
[1746317584684,4.54148152,1841.6,1841.5,0.20595175]
[1746317584685,9.97165116,1841.6,1841.5,0.20595175]
[1746317584888,4.54148152,1841.6,1841.2,0.4034109]
[1746317585052,9.97154233,1841.6,1841.5,0.20595175]
[1746317585252,9.97154233,1841.6,1841.1,9.23456136]
[1746317585464,9.97154233,1841.6,1841.5,0.205906]
[1746317585661,9.97154233,1841.6,1841.1,9.23456136]
[1746317585854,0.6824,1841.5,1841.1,9.23456136]
[1746317586054,4.52,1841.4,1841.1,9.23456136]
[1746317586792,4.52,1841.4,1841.1,6.63312646]
[1746317586996,4.52,1841.4,1841.2,3.0]
[1746317590971,4.52,1841.4,1841.2,8.43123998]
[1746317592889,4.52,1841.4,1841.1,10.83956419]
[1746317593707,4.52,1841.4,1841.2,5.43122963]
[1746317596398,4.52,1841.4,1841.3,3.0]
[1746317598523,4.52,1841.4,1841.3,8.43094552]
[1746317598816,4.52,1841.4,1841.3,10.04674943]
[1746317599606,4.52,1841.4,1841.3,10.24814061]
[1746317600789,4.52,1841.4,1841.3,4.04449509]
[1746317601017,4.52,1841.4,1841.3,3.20139118]
[1746317601410,4.52,1841.4,1841.3,0.20139118]
[1746317607325,4.52,1841.4,1841.3,8.6323367]
[1746317609833,0.04497127,1841.6,1841.5,5.43035568]
[1746317609993,4.54797127,1841.6,1841.5,5.43035568]
[1746317610194,4.54797127,1841.6,1841.5,5.63143954]
[1746317610395,4.54797127,1841.6,1841.5,0.20108386]
[1746317611331,4.54797127,1841.6,1841.5,5.63143954]
[1746317613896,0.04497127,1841.6,1841.5,9.19458349]
[1746317614102,0.04497127,1841.6,1841.5,10.01988413]
[1746317615932,0.04497127,1841.6,1841.5,9.96558349]
[1746317619620,4.502,1841.7,1841.6,6.24326081]
[1746317619996,4.502,1841.7,1841.6,6.44183974]
[1746317620201,4.502,1841.7,1841.6,7.98537368]
[1746317620396,19.579,1842.0,1841.9,6.24237639]
[1746317620397,24.081,1842.0,1841.9,6.24237639]
[1746317620730,3.64827052,1842.1,1842.0,8.42888165]
[1746317620934,3.64827052,1842.1,1842.0,8.8278152]
[1746317621136,3.64827052,1842.1,1842.0,9.02512321]
[1746317622230,3.64827052,1842.1,1842.0,10.12554448]
[1746317625439,5.19041727,1842.4,1842.0,10.12554448]
[1746317625642,5.19041727,1842.4,1842.2,5.42826886]
[1746317625850,5.19041727,1842.4,1842.3,0.19566915]
[1746317627046,5.19041727,1842.4,1842.1,5.42843382]
[1746317627248,5.19041727,1842.4,1842.2,0.1904592]
[1746317627424,5.19041727,1842.4,1842.1,10.85679804]
[1746317627610,5.19041727,1842.4,1842.2,0.1904592]
[1746317628121,5.19041727,1842.4,1842.3,0.19023306]
[1746317628319,5.19041727,1842.4,1842.1,5.42836422]
[1746317628515,5.19041727,1842.4,1842.2,0.1904592]
[1746317628714,5.19041727,1842.4,1842.1,5.42836422]
[1746317628953,5.19041727,1842.4,1842.2,0.1904592]
[1746317629254,5.19041727,1842.4,1842.1,5.42836422]
[1746317629430,5.19041727,1842.4,1842.2,0.1904592]
[1746317629634,5.19041727,1842.4,1842.1,5.42836422]
[1746317629819,5.19041727,1842.4,1842.2,0.1904592]
[1746317630149,5.19041727,1842.4,1842.2,5.42828451]
[1746317630346,5.19041727,1842.4,1842.3,0.19023306]
[1746317630713,5.19041727,1842.4,1842.1,5.42839678]
[1746317630939,5.19041727,1842.4,1842.2,0.1904592]
[1746317631140,5.19041727,1842.4,1842.2,5.61872225]
[1746317631339,5.19041727,1842.4,1842.2,5.42826305]
[1746317631556,5.19041727,1842.4,1842.3,0.19023306]
[1746317633451,5.19041727,1842.4,1842.3,5.61823067]
[1746317635272,5.19041727,1842.4,1842.3,0.19023306]
[1746317635951,5.19041727,1842.4,1842.3,5.61823067]
[1746317639851,5.19041727,1842.4,1842.3,9.72591906]
[1746317641775,5.18941727,1842.4,1842.3,9.72591906]
[1746317644851,0.68841727,1842.4,1842.3,9.72591906]
[1746317645985,0.68841727,1842.4,1842.3,9.78019239]
[1746317647187,0.68841727,1842.4,1842.3,9.72591906]
[1746317647756,0.68841727,1842.4,1842.3,9.78019244]
[1746317648075,0.68841727,1842.4,1842.3,9.72591906]
[1746317648300,0.68841727,1842.4,1842.3,9.78019241]
[1746317649069,0.68841727,1842.4,1842.3,9.72591906]
[1746317651295,0.68841727,1842.4,1842.3,8.61823067]
[1746317654794,4.5,1842.5,1842.4,8.42770299]
[1746317655199,4.5,1842.5,1842.4,8.61166011]
[1746317656242,4.5,1842.5,1842.4,3.18395712]
[1746317656495,4.5,1842.5,1842.4,8.61166011]
[1746317656696,4.5,1842.5,1842.4,0.18395712]
[1746317656922,4.5,1842.5,1842.4,8.61166011]
[1746317659100,0.6824,1842.7,1842.6,5.42711386]
[1746317659271,4.5,1842.7,1842.6,5.42711386]
[1746317659473,4.5,1842.7,1842.6,5.61061883]
[1746317660578,0.68841727,1843.1,1843.0,8.42593597]
[1746317660813,0.68841727,1843.1,1843.0,10.22787014]
[1746317660971,0.68841727,1843.1,1843.0,10.41010557]
[1746317661174,0.68841727,1843.1,1843.0,9.02489695]
[1746317662806,0.68841727,1843.1,1843.0,9.82239695]
[1746317663006,0.68841727,1843.1,1843.0,9.07915229]
[1746317663327,0.68841727,1843.1,1843.0,9.82239695]
[1746317663784,0.68841727,1843.1,1843.0,9.87665015]
[1746317663967,0.68841727,1843.1,1843.0,11.40693019]
[1746317664165,0.68841727,1843.1,1843.0,11.35267699]
[1746317664622,0.68841727,1843.1,1843.0,2.12924102]
[1746317664801,0.68841727,1843.1,1843.0,0.59896098]
[1746317664975,0.68841727,1843.1,1843.0,0.18223543]
[1746317665336,0.68841727,1843.1,1842.8,6.22399669]
[1746317665474,4.499,1843.0,1842.9,0.17657306]
[1746317667418,9.92493597,1843.0,1842.9,0.17657306]
[1746317667588,11.66867129,1843.0,1842.9,0.17657306]
[1746317668516,11.66867129,1843.0,1842.5,8.42723163]
[1746317668718,10.60733597,1843.0,1842.6,0.16513802]
[1746317669606,10.6074698,1843.0,1842.6,0.16513802]
[1746317669802,5.1814,1843.0,1842.6,0.16513802]
[1746317670007,5.1814,1843.0,1842.6,11.01905306]
[1746317670206,5.1814,1843.0,1842.6,5.59204744]
[1746317670407,5.1814,1843.0,1842.6,6.99397994]
[1746317671087,5.1814,1843.0,1842.7,0.8083]
[1746317671286,5.1814,1843.0,1842.8,0.16527867]
[1746317671531,5.1814,1843.0,1842.8,0.58061148]
[1746317671822,5.1814,1843.0,1842.8,0.16527867]
[1746317672523,4.499,1843.0,1842.8,0.16527867]
[1746317675336,4.499,1843.0,1842.8,0.57119967]
[1746317675533,4.499,1843.0,1842.8,0.16527867]
[1746317680150,4.499,1843.0,1842.8,0.57625432]
[1746317684453,4.499,1843.0,1842.8,0.16527867]
[1746317685948,4.499,1843.0,1842.8,0.80531253]
[1746317686758,4.499,1843.0,1842.8,0.16527867]
[1746317689758,1.37081727,1843.1,1842.8,3.16527867]
[1746317689759,4.505,1842.9,1842.8,3.16527867]
[1746317690552,4.505,1842.9,1842.8,8.59180352]
[1746317690732,4.505,1842.9,1842.8,9.40800352]
[1746317696558,4.505,1842.9,1842.8,3.16527867]
[1746317697257,4.505,1842.9,1842.8,8.59180352]
[1746317700549,4.505,1842.9,1842.8,9.99364267]
[1746317702971,4.505,1842.9,1842.8,4.56711782]
[1746317703148,4.505,1842.9,1842.8,8.59180352]
[1746317703660,4.505,1842.9,1842.8,8.04042842]
[1746317705134,4.505,1842.9,1842.8,8.82252842]
[1746317706169,0.68841727,1843.1,1843.0,8.42593597]
[1746317706338,0.68841727,1843.1,1843.0,9.40860604]
[1746317706544,0.68841727,1843.1,1843.0,10.89208578]
[1746317708268,0.68841727,1843.1,1843.0,10.83783207]
[1746317709784,4.9070803,1843.2,1843.1,5.42564158]
[1746317709981,4.9070803,1843.2,1843.1,5.561332]
[1746317711586,4.9070803,1843.2,1843.1,5.96983298]
[1746317711784,4.9070803,1843.2,1843.1,10.63700785]
[1746317713184,4.9070803,1843.2,1843.1,3.5441914]
[1746317713357,4.9070803,1843.2,1843.1,8.96983298]
[1746317713553,4.9070803,1843.2,1843.1,3.5441914]
[1746317713787,11.01482752,1843.2,1843.1,0.13569042]
[1746317714099,12.11631027,1843.2,1842.7,5.42671134]
[1746317714266,12.11631027,1843.2,1843.1,0.11167398]
[1746317714467,17.54191442,1843.2,1842.8,3.0]
[1746317714795,0.6824,1842.8,1842.3,4.46385062]
[1746317714997,9.92496416,1842.7,1842.4,0.12473383]
[1746317715195,4.498,1842.7,1842.4,3.12473383]
[1746317715491,4.498,1842.7,1842.4,8.42770233]
[1746317715695,4.498,1842.7,1842.5,5.42740371]
[1746317716867,4.498,1842.7,1842.5,5.48167432]
[1746317717399,4.498,1842.7,1842.4,14.64341051]
[1746317718114,4.498,1842.7,1842.5,5.42727809]
[1746317718989,4.498,1842.7,1842.5,5.42724114]
[1746317719194,4.498,1842.7,1842.5,5.48150978]
[1746317719772,4.498,1842.7,1842.5,5.42724114]
[1746317720766,4.498,1842.7,1842.6,8.42711386]
[1746317721337,4.499,1842.8,1842.7,5.4266639]
[1746317722487,4.499,1842.8,1842.7,6.1899639]
[1746317724316,4.499,1842.8,1842.7,9.1899639]
[1746317724818,4.499,1843.1,1843.0,5.42593597]
[1746317725199,4.499,1843.1,1842.9,5.42615718]
[1746317727408,4.499,1843.1,1842.8,5.42628379]
[1746317727610,4.499,1843.1,1842.9,3.0]
[1746317727975,4.499,1843.1,1842.9,8.42622594]
[1746317728181,4.499,1843.1,1842.9,3.0]
[1746317728575,0.6824,1843.0,1842.9,3.0]
[1746317729009,0.6824,1843.0,1842.7,3.0]
[1746317729204,0.6824,1843.0,1842.6,5.42688061]
[1746317729403,0.6824,1843.0,1842.7,8.42680529]
[1746317731621,0.6824,1843.0,1842.7,8.42662569]
[1746317731795,5.1814,1843.1,1842.8,5.42642111]
[1746317733232,4.499,1843.1,1842.9,5.42622424]
[1746317733440,4.499,1843.1,1842.9,5.42603367]
[1746317733791,4.499,1843.1,1842.9,10.85205312]
[1746317733992,4.499,1843.1,1842.9,8.4260266]
[1746317735022,4.499,1843.1,1843.0,5.42593597]
[1746317735404,0.4090803,1843.2,1843.0,5.42593597]
[1746317735626,0.4090803,1843.2,1843.1,6.17844158]
[1746317736029,0.4090803,1843.2,1843.1,6.23269218]
[1746317736910,0.4090803,1843.2,1843.1,9.23269218]
[1746317737107,0.4090803,1843.2,1843.1,9.17844158]
[1746317737312,0.4090803,1843.2,1843.1,10.77738526]
[1746317737518,0.4090803,1843.2,1843.1,10.7231387]
[1746317742450,0.4090803,1843.2,1843.1,10.77738233]
[1746317745319,5.2114,1843.9,1843.5,0.7933]
[1746317745514,5.2114,1843.9,1843.7,5.42359984]
[1746317745741,5.2114,1843.9,1843.7,5.96595982]
[1746317748265,5.2114,1843.9,1843.7,5.96623164]
[1746317748470,5.2114,1843.9,1843.7,5.42387166]
[1746317749441,5.2114,1843.9,1843.8,5.42358173]
[1746317749648,4.529,1843.9,1843.8,5.42358173]
[1746317751670,4.529,1843.9,1843.7,8.42373065]
[1746317752371,4.529,1843.9,1843.8,5.42358173]
[1746317752550,4.529,1843.9,1843.8,6.80830616]
[1746317753269,4.529,1843.9,1843.8,5.42358173]
[1746317753494,4.529,1843.9,1843.7,8.42366252]
[1746317754039,0.6824,1843.8,1843.7,3.0]
[1746317754667,0.6824,1843.8,1843.7,8.4238759]
[1746317755767,0.6824,1843.8,1843.7,3.0]
[1746317756168,0.6824,1843.8,1843.7,8.4238759]
[1746317758079,4.529,1843.9,1843.8,5.42358173]
[1746317763380,4.529,1843.9,1843.8,6.19688173]
[1746317764162,4.529,1843.9,1843.8,10.65895749]
[1746317767280,4.529,1843.9,1843.8,9.88565749]
[1746317771376,4.529,1843.9,1843.8,8.42358173]
[1746317783799,4.529,1843.9,1843.8,9.17778173]
[1746317784298,0.6824,1844.2,1844.1,5.42269941]
[1746317784502,5.1994,1844.2,1844.1,5.42269941]
[1746317788712,5.1994,1844.2,1844.1,5.82626072]
[1746317789975,4.517,1844.2,1844.1,5.82626072]
[1746317790182,24.97666194,1844.5,1844.3,5.42211137]
[1746317790183,5.1994,1844.4,1844.3,5.42211137]
[1746317791179,4.517,1844.4,1844.2,5.42223999]
[1746317791381,5.1994,1844.4,1844.2,5.42223999]
[1746317794691,5.1994,1844.4,1844.2,5.42220976]
[1746317795514,5.1994,1844.4,1844.2,10.84438479]
[1746317795721,5.1994,1844.4,1844.2,5.42217503]
[1746317796422,5.1994,1844.4,1844.3,5.42211137]
[1746317796794,5.1994,1844.4,1844.2,6.80675107]
[1746317796996,5.1994,1844.4,1844.2,5.42228]
[1746317797632,5.1994,1844.4,1844.1,8.42250988]
[1746317797826,5.1994,1844.4,1844.1,13.84499842]
[1746317798005,5.1994,1844.4,1844.2,5.42230622]
[1746317799022,5.1994,1844.4,1844.1,3.0]
[1746317799228,5.71934,1844.4,1844.1,3.0]
[1746317799725,5.71934,1844.4,1844.1,8.42263199]
[1746317800703,11.14123229,1844.4,1844.1,3.0]
[1746317800910,5.71934,1844.4,1844.1,8.42268792]
[1746317801317,11.14115873,1844.4,1844.1,3.0]
[1746317801617,5.71934,1844.4,1844.1,3.0]
[1746317801822,5.71934,1844.4,1844.1,8.42265827]
[1746317802834,0.6824,1844.3,1844.1,3.0]
[1746317803043,0.6824,1844.2,1843.8,5.42344592]
[1746317803341,0.6824,1844.2,1843.9,5.42327003]
[1746317804036,0.6824,1844.0,1843.4,3.66475062]
[1746317804339,0.6824,1843.8,1843.6,5.42413193]
[1746317804536,0.6824,1843.8,1843.5,5.42434264]
[1746317805628,4.502,1843.9,1843.7,5.4238759]
[1746317805939,4.502,1843.9,1843.8,5.42358173]
[1746317806344,10.60788079,1843.9,1843.5,5.42428332]
[1746317806506,5.1844,1843.9,1843.6,3.0]
[1746317806711,0.6824,1843.8,1843.5,5.42432697]
[1746317807006,0.6824,1843.8,1843.6,5.42416047]
[1746317807411,0.6824,1843.8,1843.5,8.42430368]
[1746317808610,0.6824,1843.8,1843.5,3.0]
[1746317808809,6.48445529,1843.8,1843.5,3.0]